[Event "FIDE Rating Open 2024"]
[Site "Dhaka"]
[Date "2024.01.16"]
[Round "1.1"]
[White "Rahman, Ziaur"]
[Black "Mohammad Mynul, Hasan"]
[Result "1-0"]
[ECO "A39"]
[WhiteElo "2428"]
[BlackElo "1716"]
[Annotator "TA"]
[PlyCount "47"]
[EventDate "2024.01.16"]
[EventType "swiss"]
[EventCountry "BAN"]
[SourceTitle "playchess.com"]
[Source "ChessBase"]
[SourceQuality "1"]
[TimeControl "5400+30"]

{[%evp 17,47,50,90,70,120,109,107,122,112,91,161,162,154,157,165,176,157,160,190,192,243,257,404,403,738,714,933,918,1364,1334,1337,1307]} 1. c4 {[%emt 0:02:20]} c5 {[%emt 0:00:15]} 2. g3 {[%emt 0:00:14]} g6 {[%emt 0:00:55]} 3. Bg2 {[%emt 0:00:07]} Bg7 {[%emt 0:00:13]} 4. Nc3 {[%emt 0:00:06]} Nc6 {[%emt 0:00:09]} 5. Nf3 {[%emt 0:00:08]} Nf6 {[%emt 0:01:08]} 6. d4 {[%emt 0:00:28]} cxd4 {[%emt 0:00:29]} 7. Nxd4 {[%emt 0:00:06]} a6 {[%emt 0:01:16]} 8. O-O {[%emt 0:00:24]} O-O {[%emt 0:00:44]} 9. c5 {[%emt 0:01:35]} Qc7 {[%emt 0:10:05] 9...Qc7 is better than 9...Nxd4.} 10. Nb3 {[%emt 0:04:19] A39: Symmetrical English vs ...g6: 4 Bg2 Bg7 5 Nf3 Nf6 6 0-0 0-0 7 d4.} Rb8 {[%emt 0:06:10]} ({Better is} 10... d5 $14) 11. Bf4 $16 {[%emt 0:01:30]} e5 {[%emt 0:08:43]} 12. Bg5 {[%emt 0:01:28] [#] White is better.} b5 $146 {[%emt 0:10:34]} ({Predecessor:} 12... Ne7 13. f4 Ra8 14. e4 Rd8 15. Qd6 Qxd6 16. cxd6 Nc6 17. fxe5 Ng4 18. Bxd8 Nxd8 {1-0 Fuochi,T (2019)-D`Amico,N (1752) Arco Christmas op 11th 2021 (3)}) 13. Qd2 {[%emt 0:08:25]} a5 {[%emt 0:03:15] [#]} (13... b4 $16) 14. Bxf6 $1 $18 {[%emt 0:00:56]} Bxf6 {[%emt 0:00:02]} 15. Nd5 {[%emt 0:00:08][%csl LRc7,LRf6] White is much more active. The black rooks are badly placed.} Qd8 {[%emt 0:00:21]} 16. Nxf6+ {[%emt 0:00:47]} Qxf6 {[%emt 0:00:03]} 17. Nxa5 {[%emt 0:00:12]} Nd4 {[%emt 0:01:08]} 18. b4 {[%emt 0:03:30]} Re8 {[%emt 0:04:32]} (18... d6 $142 19. c6 Bg4) 19. Rad1 {[%emt 0:01:29]} h5 {[%emt 0:01:42]} (19... d6 $142 20. c6 Bg4) 20. f4 {[%emt 0:02:00][%cal Bf2f4,Bf4e5][%mdl 32] [#] Strongly threatening fxe5.} Ne6 {[%emt 0:03:21]} (20... Nf5 $142 21. e4 Ng7) 21. Qd6 {[%emt 0:03:24][%csl LRb8,LRe5] White is clearly winning.} Bb7 {[%emt 0:12:38]} 22. fxe5 {[%emt 0:01:49]} Qxf1+ {[%emt 0:01:03]} 23. Rxf1 {[%emt 0:00:25]} Bxg2 {[%emt 0:00:13]} 24. Kxg2 {[%emt 0:00:06] Weighted Error Value: White=0.04 (flawless) /Black=0.54} 1-0

[Event "FIDE Rating Open 2024"]
[Site "Dhaka"]
[Date "2024.01.16"]
[Round "1.2"]
[White "Sangram, Das"]
[Black "Zia, Tahsin Tajwar"]
[Result "0-1"]
[ECO "D50"]
[WhiteElo "1698"]
[BlackElo "2275"]
[Annotator "NA RC"]
[PlyCount "90"]
[EventDate "2024.01.16"]
[EventType "swiss"]
[EventCountry "BAN"]
[SourceTitle "playchess.com"]
[Source "ChessBase"]
[SourceQuality "1"]
[TimeControl "5400+30"]

1. d4 {[%emt 0:00:05]} Nf6 {[%emt 0:03:28]} 2. c4 {[%emt 0:00:31]} e6 {[%emt 0:01:58]} 3. Nc3 {[%emt 0:02:14]} d5 {[%emt 0:00:11]} 4. Bg5 {[%emt 0:05:39]} dxc4 {[%emt 0:00:27]} 5. e3 {[%emt 0:01:26]} c5 {[%emt 0:00:06]} 6. dxc5 {[%emt 0:03:01]} Qa5 {[%emt 0:11:32]} 7. Bxf6 {[%emt 0:07:22]} gxf6 {[%emt 0:00:03]} 8. Qa4+ {[%emt 0:01:43]} Qxa4 {[%emt 0:00:46]} 9. Nxa4 {[%emt 0:00:09]} Bd7 {[%emt 0:00:42]} 10. Nc3 {[%emt 0:01:00]} Bxc5 {[%emt 0:00:58]} 11. Bxc4 {[%emt 0:00:36]} a6 {[%emt 0:01:47]} 12. Nf3 {[%emt 0:02:30]} Bc6 {[%emt 0:01:30]} 13. Ke2 {[%emt 0:01:22]} Nd7 {[%emt 0:00:13]} 14. Rad1 {[%emt 0:04:50]} Ke7 {[%emt 0:00:59]} 15. Bb3 {[%emt 0:03:47]} b5 {[%emt 0:01:46]} 16. Bc2 {[%emt 0:04:05]} f5 {[%emt 0:04:24]} 17. Rhg1 {[%emt 0:02:05]} Rac8 {[%emt 0:00:59]} 18. Rd2 {[%emt 0:07:22]} Rhg8 {[%emt 0:01:21]} 19. Bb3 {[%emt 0:06:18]} Nb6 {[%emt 0:02:05]} 20. a3 {[%emt 0:05:50]} Bxa3 {[%emt 0:04:44]} 21. Na2 {[%emt 0:04:55]} Bc5 {[%emt 0:01:25]} 22. g3 {[%emt 0:01:58]} a5 {[%emt 0:01:00]} 23. Ne5 {[%emt 0:01:25]} a4 {[%emt 0:00:56]} 24. Bc2 {[%emt 0:01:58]} Be8 {[%emt 0:00:43]} 25. b3 {[%emt 0:03:26]} Bd6 {[%emt 0:01:14]} 26. Nd3 {[%emt 0:01:16]} Rxc2 {[%emt 0:02:45]} 27. Rxc2 {[%emt 0:01:33]} axb3 {[%emt 0:00:02]} 28. Rb2 {[%emt 0:01:40]} bxa2 {[%emt 0:00:12]} 29. Rxa2 {[%emt 0:00:11]} Bd7 {[%emt 0:00:17]} 30. Ra7 {[%emt 0:01:39]} Rb8 {[%emt 0:01:51]} 31. Rb1 {[%emt 0:02:07]} Nd5 {[%emt 0:01:20]} 32. Kd2 {[%emt 0:02:00]} b4 {[%emt 0:01:57]} 33. Rc1 {[%emt 0:01:30]} Nc3 {[%emt 0:02:21]} 34. Nb2 {[%emt 0:00:50]} Bc5 {[%emt 0:00:41]} 35. Ra5 {[%emt 0:02:01]} Bb5 {[%emt 0:00:55]} 36. Kc2 {[%emt 0:02:26]} Bb6 {[%emt 0:01:34]} 37. Raa1 {[%emt 0:00:37]} Ne4 {[%emt 0:02:16]} 38. Nd1 {[%emt 0:02:06]} Be2 {[%emt 0:05:51]} 39. Kb3 {[%emt 0:06:09]} Bxd1+ {[%emt 0:00:54]} 40. Rxd1 {[%emt 0:00:19]} Nxf2 {[%emt 0:00:06]} 41. Rd2 {[%emt 0:00:29]} Bxe3 {[%emt 0:00:20]} 42. Rc2 {[%emt 0:01:43]} Rb7 {[%emt 0:01:06]} 43. Ra4 {[%emt 0:00:21]} Nd3 {[%emt 0:00:28]} 44. Ra5 {[%emt 0:01:34]} Kf6 {[%emt 0:01:10]} 45. Re2 {[%emt 0:01:01]} Nc1+ {[%emt 0:00:39]} 0-1

[Event "FIDE Rating Open 2024"]
[Site "Dhaka"]
[Date "2024.01.16"]
[Round "1.3"]
[White "Md Masud, Rana"]
[Black "Subrota, Biswas"]
[Result "0-1"]
[ECO "C01"]
[WhiteElo "1703"]
[BlackElo "2223"]
[Annotator "NA RC"]
[PlyCount "58"]
[EventDate "2024.01.16"]
[EventType "swiss"]
[EventCountry "BAN"]
[SourceTitle "playchess.com"]
[Source "ChessBase"]
[SourceQuality "1"]
[TimeControl "5400+30"]

1. e4 {[%emt 0:00:04]} e6 {[%emt 0:00:02]} 2. d4 {[%emt 0:00:21]} d5 {[%emt 0:00:02]} 3. exd5 {[%emt 0:00:46]} exd5 {[%emt 0:00:01]} 4. Nf3 {[%emt 0:00:25]} Bd6 {[%emt 0:00:39]} 5. Bd3 {[%emt 0:00:16]} Nc6 {[%emt 0:00:35]} 6. O-O {[%emt 0:01:23]} Nge7 {[%emt 0:00:02]} 7. c3 {[%emt 0:01:10]} Bf5 {[%emt 0:01:33]} 8. Re1 {[%emt 0:01:22]} Qd7 {[%emt 0:00:02]} 9. Ne5 {[%emt 0:02:19]} Bxe5 {[%emt 0:00:40]} 10. dxe5 {[%emt 0:00:24]} d4 {[%emt 0:00:23]} 11. cxd4 {[%emt 0:02:04]} O-O-O {[%emt 0:04:54]} 12. Bg5 {[%emt 0:15:55]} Nxd4 {[%emt 1:27:37]} 13. Bxf5 {[%emt 0:06:32]} Ndxf5 {[%emt 0:00:00]} 14. Qg4 {[%emt 0:02:06]} h5 {[%emt 0:00:00]} 15. Qh3 {[%emt 0:01:54]} Qd3 {[%emt 0:00:00]} 16. Qxd3 {[%emt 0:04:14]} Rxd3 {[%emt 0:00:00]} 17. Nc3 {[%emt 0:00:07]} Nc6 {[%emt 0:00:00]} 18. Rad1 {[%emt 0:04:35]} Rxd1 {[%emt 0:00:00]} 19. Nxd1 {[%emt 0:00:02]} Re8 {[%emt 0:00:00]} 20. Bf4 {[%emt 0:01:47]} Nb4 {[%emt 0:04:00]} 21. Re4 {[%emt 0:08:35]} Nd3 {[%emt 0:00:00]} 22. g3 {[%emt 0:04:21]} f6 {[%emt 0:00:00]} 23. exf6 {[%emt 0:01:51]} Rxe4 {[%emt 0:00:00]} 24. f7 {[%emt 0:00:03]} Re1+ {[%emt 0:00:00]} 25. Kg2 {[%emt 0:00:02]} Nxf4+ {[%emt 0:02:30]} 26. gxf4 {[%emt 0:01:10]} Nh4+ {[%emt 0:00:00]} 27. Kg3 {[%emt 0:00:17]} Ng6 {[%emt 0:00:00]} 28. f5 {[%emt 0:01:23]} Rg1+ {[%emt 0:00:00]} 29. Kf3 {[%emt 0:00:09]} Ne5+ {[%emt 0:00:00]} 0-1

[Event "FIDE Rating Open 2024"]
[Site "Dhaka"]
[Date "2024.01.16"]
[Round "1.4"]
[White "Mohammad Minhaz Uddin"]
[Black "Md Nesar Uddin"]
[Result "1-0"]
[ECO "C06"]
[WhiteElo "2224"]
[BlackElo "1697"]
[Annotator "NA RC"]
[PlyCount "71"]
[EventDate "2024.01.16"]
[EventType "swiss"]
[EventCountry "BAN"]
[SourceTitle "playchess.com"]
[Source "ChessBase"]
[SourceQuality "1"]
[TimeControl "5400+30"]

1. e4 {[%emt 0:32:24]} e6 {[%emt 0:03:11]} 2. d4 {[%emt 0:00:03]} d5 {[%emt 0:00:14]} 3. Nd2 {[%emt 0:00:11]} Nf6 {[%emt 0:00:50]} 4. e5 {[%emt 0:00:06]} Nfd7 {[%emt 0:00:32]} 5. Bd3 {[%emt 0:00:04]} c5 {[%emt 0:00:12]} 6. c3 {[%emt 0:00:02]} Nc6 {[%emt 0:01:25]} 7. Ne2 {[%emt 0:00:04]} Qb6 {[%emt 0:00:18]} 8. Nf3 {[%emt 0:00:18]} a5 {[%emt 0:03:40]} 9. O-O {[%emt 0:00:14]} Be7 {[%emt 0:02:37]} 10. Re1 {[%emt 0:03:06]} Nf8 {[%emt 0:00:32]} 11. Ng3 {[%emt 0:00:16]} h5 {[%emt 0:02:23]} 12. h4 {[%emt 0:00:24]} a4 {[%emt 0:05:44]} 13. Bg5 {[%emt 0:06:42]} c4 {[%emt 0:01:06]} 14. Bc2 {[%emt 0:05:23]} Qxb2 {[%emt 0:00:22]} 15. Rb1 {[%emt 0:00:19]} Qxc3 {[%emt 0:04:19]} 16. Bd2 {[%emt 0:00:21]} Qa3 {[%emt 0:00:18]} 17. Re3 {[%emt 0:01:00]} Qxa2 {[%emt 0:00:29]} 18. Bc3 {[%emt 0:01:57]} Qa3 {[%emt 0:01:57]} 19. Ra1 {[%emt 0:00:43]} b5 {[%emt 0:01:53]} 20. Rxa3 {[%emt 0:00:13]} Bxa3 {[%emt 0:00:07]} 21. Ng5 {[%emt 0:08:09]} g6 {[%emt 0:01:09]} 22. N3e4 {[%emt 0:03:02]} Be7 {[%emt 0:00:56]} 23. Qf3 {[%emt 0:01:27]} b4 {[%emt 0:22:31]} 24. Nf6+ {[%emt 0:07:00]} Kd8 {[%emt 0:01:26]} 25. Nxf7+ {[%emt 0:05:29]} Kc7 {[%emt 0:00:07]} 26. Nxh8 {[%emt 0:00:07]} bxc3 {[%emt 0:00:10]} 27. Ne8+ {[%emt 0:00:24]} Kd8 {[%emt 0:00:27]} 28. Nd6 {[%emt 0:00:14]} Nxd4 {[%emt 0:02:14]} 29. Qf7 {[%emt 0:01:34]} Bd7 {[%emt 0:11:34]} 30. Nb7+ {[%emt 0:06:16]} Kc7 {[%emt 0:00:05]} 31. Qxe7 {[%emt 0:00:04]} Nxc2 {[%emt 0:00:26]} 32. Rxc3 {[%emt 0:00:54]} Kxb7 {[%emt 0:00:42]} 33. Rxc2 {[%emt 0:00:09]} a3 {[%emt 0:00:29]} 34. Nxg6 {[%emt 0:00:53]} a2 {[%emt 0:00:21]} 35. Rb2+ {[%emt 0:00:42]} Kc7 {[%emt 0:00:21]} 36. Qd6+ {[%emt 0:00:04]} 1-0

[Event "FIDE Rating Open 2024"]
[Site "Dhaka"]
[Date "2024.01.16"]
[Round "1.5"]
[White "Abu Sufian, Shakil"]
[Black "Warsia, Khusbu"]
[Result "1-0"]
[ECO "C43"]
[WhiteElo "2199"]
[BlackElo "1684"]
[Annotator "NA RC"]
[PlyCount "71"]
[EventDate "2024.01.16"]
[EventType "swiss"]
[EventCountry "BAN"]
[SourceTitle "playchess.com"]
[Source "ChessBase"]
[SourceQuality "1"]
[TimeControl "5400+30"]

1. e4 {[%emt 0:01:11]} e5 {[%emt 0:00:02]} 2. Nf3 {[%emt 0:00:08]} Nf6 {[%emt 0:00:11]} 3. d4 {[%emt 0:06:10]} Nxe4 {[%emt 0:00:26]} 4. Bd3 {[%emt 0:00:09]} Nc6 {[%emt 0:00:20]} 5. Nxe5 {[%emt 0:07:47]} Nxe5 {[%emt 0:04:24]} 6. dxe5 {[%emt 0:00:03]} d5 {[%emt 0:00:02]} 7. Bxe4 {[%emt 0:01:14]} dxe4 {[%emt 0:00:21]} 8. Qxd8+ {[%emt 0:00:06]} Kxd8 {[%emt 0:00:03]} 9. Nc3 {[%emt 0:00:11]} Bb4 {[%emt 0:05:46]} 10. Bg5+ {[%emt 0:00:11]} Ke8 {[%emt 0:00:10]} 11. O-O-O {[%emt 0:00:10]} Bf5 {[%emt 0:01:41]} 12. Nb5 {[%emt 0:19:16]} Ba5 {[%emt 0:03:46]} 13. Rd5 {[%emt 0:04:30]} h6 {[%emt 0:09:20]} 14. Nd4 {[%emt 0:02:54]} Bd7 {[%emt 0:01:59]} 15. Rxa5 {[%emt 0:00:54]} hxg5 {[%emt 0:00:04]} 16. e6 {[%emt 0:00:40]} Bxe6 {[%emt 0:04:12]} 17. Rxg5 {[%emt 0:01:47]} Ke7 {[%emt 0:02:48]} 18. Rxg7 {[%emt 0:00:55]} Rag8 {[%emt 0:01:00]} 19. Rxg8 {[%emt 0:00:46]} Rxg8 {[%emt 0:00:03]} 20. Nxe6 {[%emt 0:00:12]} Kxe6 {[%emt 0:00:07]} 21. g3 {[%emt 0:00:11]} f5 {[%emt 0:01:38]} 22. Kd2 {[%emt 0:01:27]} Rd8+ {[%emt 0:04:26]} 23. Ke3 {[%emt 0:00:43]} Ke5 {[%emt 0:00:08]} 24. h4 {[%emt 0:00:24]} c5 {[%emt 0:01:38]} 25. h5 {[%emt 0:00:51]} c4 {[%emt 0:00:47]} 26. h6 {[%emt 0:00:17]} b5 {[%emt 0:00:46]} 27. h7 {[%emt 0:00:42]} Rh8 {[%emt 0:00:10]} 28. c3 {[%emt 0:50:41]} a5 {[%emt 0:00:10]} 29. a3 {[%emt 0:00:00]} Kf6 {[%emt 0:00:42]} 30. Kf4 {[%emt 0:00:00]} Kg6 {[%emt 0:00:11]} 31. Rh2 {[%emt 0:00:00]} a4 {[%emt 0:00:10]} 32. Rh1 {[%emt 0:00:00]} Kf6 {[%emt 0:00:37]} 33. Rh6+ {[%emt 0:00:00]} Kg7 {[%emt 0:00:06]} 34. Kg5 {[%emt 0:00:00]} Rxh7 {[%emt 0:01:06]} 35. Rxh7+ {[%emt 0:00:00]} Kxh7 {[%emt 0:00:02]} 36. Kxf5 {[%emt 0:00:00]} 1-0

[Event "FIDE Rating Open 2024"]
[Site "Dhaka"]
[Date "2024.01.16"]
[Round "1.6"]
[White "Shamsul Kabir Chowdhury"]
[Black "Anata, Choudhury"]
[Result "0-1"]
[ECO "E24"]
[WhiteElo "1681"]
[BlackElo "2196"]
[Annotator "NA RC"]
[PlyCount "97"]
[EventDate "2024.01.16"]
[EventType "swiss"]
[EventCountry "BAN"]
[SourceTitle "playchess.com"]
[Source "ChessBase"]
[SourceQuality "1"]
[TimeControl "5400+30"]

1. d4 {[%emt 0:00:06]} Nf6 {[%emt 0:00:13]} 2. c4 {[%emt 0:00:05]} e6 {[%emt 0:00:09]} 3. Nc3 {[%emt 0:00:03]} Bb4 {[%emt 0:00:07]} 4. a3 {[%emt 0:00:08]} Bxc3+ {[%emt 0:00:07]} 5. bxc3 {[%emt 0:00:04]} b6 {[%emt 0:00:16]} 6. Qc2 {[%emt 0:00:33]} Ba6 {[%emt 0:00:31]} 7. e4 {[%emt 0:01:09]} Nc6 {[%emt 0:00:06]} 8. e5 {[%emt 0:02:07]} Ng8 {[%emt 0:00:13]} 9. Bd3 {[%emt 0:03:10]} Nge7 {[%emt 0:00:41]} 10. f4 {[%emt 0:01:05]} Na5 {[%emt 0:00:08]} 11. Qe2 {[%emt 0:03:27]} d5 {[%emt 0:10:53]} 12. c5 {[%emt 0:05:29]} Bxd3 {[%emt 0:00:41]} 13. Qxd3 {[%emt 0:00:16]} Qd7 {[%emt 0:00:56]} 14. cxb6 {[%emt 0:04:08]} cxb6 {[%emt 0:00:51]} 15. Ne2 {[%emt 0:05:57]} O-O {[%emt 0:03:55]} 16. g4 {[%emt 0:04:14]} f5 {[%emt 0:01:00]} 17. g5 {[%emt 0:01:23]} Rac8 {[%emt 0:00:35]} 18. Kf2 {[%emt 0:03:46]} Qa4 {[%emt 0:04:01]} 19. Rb1 {[%emt 0:05:46]} Rc7 {[%emt 0:02:26]} 20. Rb4 {[%emt 0:05:45]} Qd7 {[%emt 0:01:08]} 21. Qb5 {[%emt 0:00:58]} Nec6 {[%emt 0:12:36]} 22. Rb1 {[%emt 0:00:53]} Nc4 {[%emt 0:01:29]} 23. h4 {[%emt 0:03:42]} Rfc8 {[%emt 0:03:33]} 24. h5 {[%emt 0:02:49]} a6 {[%emt 0:13:19]} 25. Qa4 {[%emt 0:02:00]} N6xe5 {[%emt 0:01:00]} 26. Qd1 {[%emt 0:05:22]} Ng4+ {[%emt 0:00:39]} 27. Kf3 {[%emt 0:00:37]} b5 {[%emt 0:00:21]} 28. h6 {[%emt 0:02:09]} g6 {[%emt 0:01:46]} 29. Qb3 {[%emt 0:05:12]} Nd6 {[%emt 0:00:59]} 30. Rd1 {[%emt 0:05:25]} Ne4 {[%emt 0:00:23]} 31. Bd2 {[%emt 0:04:07]} Ngf2 {[%emt 0:00:52]} 32. Be1 {[%emt 0:00:44]} Nxd1 {[%emt 0:00:09]} 33. Rxd1 {[%emt 0:02:08]} Rc4 {[%emt 0:00:16]} 34. Rd3 {[%emt 0:03:48]} Qc7 {[%emt 0:01:11]} 35. Re3 {[%emt 0:01:55]} Qa5 {[%emt 0:00:43]} 36. Nc1 {[%emt 0:03:20]} Qa4 {[%emt 0:00:21]} 37. Qxa4 {[%emt 0:04:28]} Rxa4 {[%emt 0:00:55]} 38. Nd3 {[%emt 0:01:21]} Rxa3 {[%emt 0:40:01]} 39. Nc5 {[%emt 0:01:27]} Nxc5 {[%emt 0:00:00]} 40. dxc5 {[%emt 0:00:04]} Kf7 {[%emt 0:00:00]} 41. Rd3 {[%emt 0:01:32]} Rxc5 {[%emt 0:00:00]} 42. Ke3 {[%emt 0:00:15]} Rc4 {[%emt 0:00:00]} 43. Bd2 {[%emt 0:02:03]} a5 {[%emt 0:00:00]} 44. Ke2 {[%emt 0:00:27]} b4 {[%emt 0:00:00]} 45. cxb4 {[%emt 0:00:33]} axb4 {[%emt 0:00:00]} 46. Be3 {[%emt 0:01:42]} Rxd3 {[%emt 0:00:00]} 47. Kxd3 {[%emt 0:00:03]} b3 {[%emt 0:00:00]} 48. Bd4 {[%emt 0:00:40]} Rxd4+ {[%emt 0:00:00]} 49. Kxd4 {[%emt 0:06:35]} 0-1

[Event "FIDE Rating Open 2024"]
[Site "Dhaka"]
[Date "2024.01.16"]
[Round "2.1"]
[White "Md Nasir Uddin"]
[Black "Rahman, Ziaur"]
[Result "0-1"]
[ECO "D02"]
[WhiteElo "1839"]
[BlackElo "2428"]
[Annotator "TA"]
[PlyCount "132"]
[EventDate "2024.01.16"]
[EventType "swiss"]
[EventCountry "BAN"]
[SourceTitle "playchess.com"]
[Source "ChessBase"]
[SourceQuality "1"]
[TimeControl "5400+30"]

{[%evp 10,132,14,0,-4,-11,-3,-3,0,-37,-33,-34,-27,-41,17,0,0,-16,0,0,7,-36,-32,-44,-49,-47,-45,-60,-9,-6,0,0,41,-6,111,90,182,175,256,93,91,59,67,43,48,0,77,41,41,39,60,56,64,57,55,54,70,0,95,83,80,9,140,75,141,160,162,0,0,-94,-97,-97,-81,-83,-43,-317,-309,-314,-307,-441,-439,-414,-421,-457,-453,-429,-264,-600,-590,-752,-752,-747,-716,-720,-675,-660,-489,-473,-444,-762,-761,-730,-745,-748,-679,-739,-731,-855,-696,-658,-506,-753,-710,-1310,-1294,-1164,-1156,-6053,-8125,-5535,-4232,-1826,-1376,-1623,-1666]} 1. d4 {[%emt 0:00:04]} d5 {[%emt 0:00:46]} 2. Nf3 {[%emt 0:00:14]} Nf6 {[%emt 0:01:53]} 3. g3 {[%emt 0:00:38]} Bf5 {[%emt 0:00:58]} 4. Bg2 {[%emt 0:00:21]} e6 {[%emt 0:00:13]} 5. Nbd2 {[%emt 0:02:16]} Be7 {[%emt 0:01:06]} 6. O-O {[%emt 0:01:15]} h6 {[%emt 0:01:17] D02: 1 d4 d5 2 Nf3 sidelines, including 2...Nf6 3 g3 and 2...Nf6 3 Bf4.} 7. b3 {[%emt 0:02:18] [#]} a5 $146 {[%emt 0:01:38]} ({Predecessor:} 7... O-O 8. Bb2 Nbd7 9. Ne5 a5 10. a3 Bh7 11. c4 c6 12. Re1 Nxe5 13. dxe5 Nd7 14. cxd5 exd5 15. f4 Nc5 16. Kh1 f6 17. exf6 Bxf6 18. Bxf6 Qxf6 19. b4 axb4 20. axb4 {0-1 Van der Lende,I (2347)-Bok,B (2592) NED-chT 1617 2016 (3.2)}) 8. Bb2 {[%emt 0:04:53]} a4 {[%emt 0:02:58] The position is equal.} 9. a3 {[%emt 0:05:09]} axb3 {[%emt 0:03:42]} 10. cxb3 {[%emt 0:00:04]} Nbd7 {[%emt 0:00:55]} 11. b4 {[%emt 0:04:23]} b5 {[%emt 0:07:24]} (11... Nb6 $15) 12. Rc1 {[%emt 0:04:40]} O-O {[%emt 0:03:42]} 13. Re1 {[%emt 0:04:55]} Nb6 {[%emt 0:01:56]} 14. Ne5 $1 {[%emt 0:00:57]} Nc4 {[%emt 0:00:12]} 15. Nexc4 {[%emt 0:04:00]} bxc4 {[%emt 0:00:08]} 16. e4 {[%emt 0:00:08]} Bg4 {[%emt 0:03:00]} 17. Qc2 {[%emt 0:02:48]} c6 {[%emt 0:00:19]} 18. Ra1 {[%emt 0:00:58]} Nd7 {[%emt 0:01:27]} (18... Bh5 $15) 19. Bc3 $11 {[%emt 0:01:36]} Bh5 {[%emt 0:01:12]} 20. a4 {[%emt 0:02:38]} Bg6 {[%emt 0:00:23]} 21. a5 {[%emt 0:00:18]} (21. Qb2 $14) 21... Bh7 {[%emt 0:02:00]} (21... Qc7 $11) 22. Qa4 {[%emt 0:02:16]} Nb8 {[%emt 0:05:48]} (22... Qc8 $16) 23. exd5 $18 {[%emt 0:02:28]} cxd5 {[%emt 0:01:29]} (23... exd5 {was called for.} 24. b5 Bf6) 24. b5 $2 {[%emt 0:00:20]} (24. Nxc4 $18 {is the precise move to win. Nb6 would be deadly.} Qc8 {[%mdl 64] Pin} 25. Nb6 Qxc3 26. Nxa8) 24... Nd7 $16 {[%emt 0:00:48]} 25. Qd1 {[%emt 0:01:08]} Bd6 {[%emt 0:01:35]} 26. Qg4 {[%emt 0:06:17][%cal Oe1e6]} Nf6 {[%emt 0:01:23]} 27. Qd1 {[%emt 0:04:19]} (27. Qf3 $14) 27... Qd7 {[%emt 0:04:06]} (27... Nd7 $1 $11) 28. Qa4 {[%emt 0:00:17]} (28. b6 {looks sharper.} Bd3 29. Nb3 Qc6 30. Nc5) 28... Rfb8 {[%emt 0:00:48]} 29. b6 {[%emt 0:03:04]} Qxa4 {[%emt 0:01:32]} 30. Rxa4 {[%emt 0:00:02] Nxc4 is the strong threat.} Rxb6 {[%emt 0:00:52] Threatens to win with ...Rc6.} 31. Nxc4 {[%emt 0:00:04]} Rc6 {[%emt 0:00:58][%mdl 64] aiming for ...Bc2. Pin} 32. Nxd6 {[%emt 0:05:17][%cal Bc4d6,Bd6b7,Bb7c5][%mdl 32]} Rxc3 {[%emt 0:05:56]} 33. Rea1 {[%emt 0:00:05]} (33. Bf1 $1 $14) 33... Rc6 {[%emt 0:05:05]} (33... Bd3 $1 $11 {remains equal.}) 34. Nb7 $1 {[%emt 0:00:40]} Ne4 {[%emt 0:07:35]} 35. Bf1 {[%emt 0:02:06]} (35. Bxe4 $16 Bxe4 36. Nc5) 35... Ra7 {[%emt 0:01:33]} (35... Nd2 $1 $11) 36. a6 {[%emt 0:00:34]} (36. Rb4 $142 $1) 36... g5 {[%emt 0:01:16] [#]} (36... Rb6 $142) 37. Rb4 $1 {[%emt 0:00:29]} Nd2 {[%emt 0:02:04] [#]} 38. Bb5 {[%emt 0:00:45]} ({Better is} 38. Be2 $1 $18) 38... Rb6 $1 $36 {[%emt 0:01:17][%mdl 2048] Black is pushing.} 39. Nc5 {[%emt 0:00:06] Against Bd3} (39. Raa4 $11 Nf3+ 40. Kg2 Ne1+ 41. Kg1) 39... Nf3+ $17 {[%emt 0:01:10]} 40. Kg2 {[%emt 0:02:16] [#]} Nxd4 {[%emt 0:00:28][%mdl 64] Deflection. Black is more active.} 41. Ra5 {[%emt 0:01:22]} Nc6 {[%emt 0:04:28]} 42. Bxc6 {[%emt 0:00:07][%mdl 8192] Loses the game.} (42. Nd7 $1 $15) 42... Rxb4 $19 {[%emt 0:00:05]} 43. Bb7 {[%emt 0:00:21]} Be4+ {[%emt 0:00:46]} 44. Kf1 {[%emt 0:02:49]} (44. Nxe4 $142 Rxe4 45. Rc5) 44... Bf3 {[%emt 0:01:57][%cal Rb4b1]} 45. Ke1 {[%emt 0:00:07]} g4 {[%emt 0:00:30]} 46. Kd2 {[%emt 0:02:52]} Rb2+ {[%emt 0:00:52]} 47. Ke3 {[%emt 0:02:54]} e5 {[%emt 0:00:52]} 48. Kd3 {[%emt 0:00:34]} (48. Bxd5 Bxd5 49. Nd3) 48... Kg7 {[%emt 0:01:42] Black is clearly winning.} 49. Nd7 {[%emt 0:00:27]} f6 {[%emt 0:01:23]} 50. Kc3 {[%emt 0:01:53]} Rbxb7 {[%emt 0:00:18]} 51. axb7 {[%emt 0:00:10]} Rxb7 {[%emt 0:00:02][%mdl 4096] Endgame KRB-KRN} ({Don't play} 51... Rxa5 52. b8=Q $18 (52. b8=B $2 {perishes.} d4+ 53. Kd2 Ra2+ 54. Kd3 Be2+ 55. Ke4 d3 $19) (52. b8=B $2 {is the wrong capture.} d4+ 53. Kd3 Ra3+ 54. Kc4 d3 $19)) 52. Nc5 {[%emt 0:00:08]} Rc7 {[%emt 0:01:19]} 53. Kd2 {[%emt 0:00:23]} Kg6 {[%emt 0:00:15]} 54. Ne6 {[%emt 0:02:19]} (54. Kc2 $142) 54... Rb7 {[%emt 0:00:42] And now ...Rb2+ would win.} 55. Ra2 {[%emt 0:00:08]} d4 {[%emt 0:00:48]} 56. Nc5 {[%emt 0:00:25]} Rb5 {[%emt 0:00:23]} 57. Rc2 {[%emt 0:00:25]} Kf5 {[%emt 0:00:39]} 58. Nd7 {[%emt 0:02:12]} Rb7 {[%emt 0:01:31]} 59. Nc5 {[%emt 0:00:21]} Ra7 {[%emt 0:00:21]} 60. Rb2 {[%emt 0:00:22]} Ra1 {[%emt 0:18:45] Strongly threatening ...e4.} 61. Rb6 {[%emt 0:00:20]} Ra2+ {[%emt 0:00:00][%mdl 64] Skewer} 62. Kc1 {[%emt 0:01:24]} Rxf2 {[%emt 0:00:00]} 63. Nd7 {[%emt 0:22:51]} d3 {[%emt 0:00:00]} 64. Rxf6+ {[%emt 0:00:00]} Ke4 {[%emt 0:00:00] ( -> ...d2+)} 65. Rd6 {[%emt 0:00:00]} Rc2+ {[%emt 0:00:00]} 66. Kb1 {[%emt 0:00:00]} Rc7 {[%emt 0:00:00] Weighted Error Value: White=0.46/Black=0.29 (precise)} 0-1